bitfinex/quotes_ETHUSD_20241217
["timestamp","ask_amount","ask_price","bid_price","bid_amount"]
[1734454655123,2.40357284,3942.3,3940.5,3.0]
[1734454655454,2.40357284,3942.3,3940.6,0.7385933]
[1734454655610,2.40357284,3942.3,3940.7,0.1885933]
[1734454656627,2.40357284,3942.3,3940.8,0.7508]
[1734454656811,2.40357284,3942.3,3941.0,0.7508]
[1734454658202,3.0,3942.6,3941.0,0.7508]
[1734454658402,3.0,3942.6,3941.1,0.18863341]
[1734454658612,3.0,3942.6,3940.6,2.95357284]
[1734454658613,3.0,3942.6,3941.2,0.7508]
[1734454659454,2.40357284,3942.3,3941.2,0.7508]
[1734454661872,0.62795028,3943.5,3940.6,0.57537009]
[1734454661873,2.52806914,3943.3,3941.4,0.7508]
[1734454662155,2.52806914,3943.3,3940.6,0.55]
[1734454662156,2.40357284,3942.9,3941.6,0.7508]
[1734454663154,2.40357284,3942.9,3941.7,0.18884675]
[1734454663305,2.40357284,3942.9,3941.8,0.14896468]
[1734454665155,2.40357284,3942.9,3941.9,0.7508]
[1734454666430,2.40357284,3942.1,3940.5,0.7841]
[1734454666639,2.40357284,3942.1,3940.0,0.23992728]
[1734454666640,2.40357284,3942.1,3940.7,0.7841]
[1734454666818,2.40357284,3942.1,3940.8,0.18918887]
[1734454667022,2.40357284,3942.1,3940.9,0.18918887]
[1734454667229,2.40357284,3942.1,3941.0,0.18918887]
[1734454667550,2.40357284,3942.1,3941.1,0.97328887]
[1734454667714,2.40357284,3942.1,3941.1,0.7841]
[1734454668057,2.89759112,3942.1,3941.1,0.7841]
[1734454668539,2.40357284,3942.1,3941.1,0.7841]
[1734454669855,2.53678,3942.0,3941.1,0.7841]
[1734454670421,2.53703,3941.7,3941.1,0.7841]
[1734454670821,2.53686,3941.9,3941.1,0.7841]
[1734454671342,2.53691,3941.8,3941.1,0.7841]
[1734454671543,0.49404828,3941.8,3941.1,0.7841]
[1734454671743,2.40357284,3942.1,3941.1,0.7841]
[1734454672137,2.53697,3941.8,3941.1,0.7841]
[1734454672455,2.40357284,3941.7,3941.1,0.7841]
[1734454672661,0.7934,3942.0,3940.0,0.26435001]
[1734454672662,2.40357284,3941.3,3940.1,0.7841]
[1734454672968,2.53736,3941.1,3940.1,0.7841]
[1734454673133,3.03145328,3941.1,3940.1,0.7841]
[1734454673342,2.53745,3941.0,3940.1,0.7841]
[1734454674491,2.40357284,3940.9,3940.1,0.7841]
[1734454675161,4.94108284,3940.9,3940.1,0.7841]
[1734454675486,2.40357284,3940.5,3940.1,0.7841]
[1734454675695,2.64393012,3940.5,3940.1,0.7841]
[1734454676040,2.40357284,3940.9,3940.1,0.7841]
[1734454676268,0.49409328,3941.1,3940.1,0.7841]
[1734454676750,2.53703,3941.7,3940.1,0.7841]
[1734454676962,2.40357284,3941.7,3940.1,0.7841]
[1734454677836,2.40357284,3941.7,3940.2,0.55]
[1734454678041,2.40357284,3942.1,3940.3,0.7841]
[1734454678343,0.24035728,3942.0,3940.7,0.7841]
[1734454678540,2.40357284,3942.1,3940.7,0.7841]
[1734454682538,4.94032284,3942.1,3940.7,0.7841]
[1734454682762,2.40357284,3942.1,3940.7,0.7841]
[1734454683075,2.64393012,3942.1,3940.7,0.7841]
[1734454685472,2.76989417,3942.1,3940.7,0.7841]
[1734454686267,4.94055284,3941.7,3940.7,0.7841]
[1734454686466,2.40357284,3941.3,3940.7,0.7841]
[1734454694730,2.40357284,3941.7,3940.7,0.7841]
[1734454695025,2.94393012,3941.7,3940.7,0.7841]
[1734454697015,2.40357284,3941.3,3940.7,0.7841]
[1734454697797,2.40357284,3941.7,3940.7,0.7841]
[1734454697999,2.40357284,3942.1,3940.8,0.83237398]
[1734454698200,2.40357284,3942.1,3940.9,0.876785]
[1734454698404,2.40357284,3942.5,3941.1,0.807]
[1734454698601,1.85521712,3942.9,3941.4,0.807]
[1734454698602,2.40357284,3942.9,3941.4,0.807]
[1734454698898,2.40357284,3942.9,3941.6,0.807]
[1734454699131,2.40357284,3942.9,3941.8,0.807]
[1734454699329,2.40357284,3942.9,3941.9,0.876785]
[1734454699533,2.40357284,3942.9,3942.0,1.0001242]
[1734454699700,1.85521712,3943.6,3942.0,1.0001242]
[1734454699701,2.40357284,3943.3,3942.0,1.0001242]
[1734454699915,2.53238513,3943.3,3942.1,0.83236247]
[1734454700130,2.53238513,3943.3,3942.1,0.807]
[1734454700504,5.06833513,3943.3,3942.1,0.807]
[1734454700706,3.11958864,3943.3,3942.1,0.807]
[1734454702143,2.53601,3943.2,3942.1,0.807]
[1734454702949,2.40357284,3942.9,3942.1,0.807]
[1734454704118,0.12881229,3943.3,3942.1,0.807]
[1734454704328,0.4624208,3943.3,3942.1,0.807]
[1734454705247,7.93919284,3943.8,3942.1,0.807]
[1734454705541,7.93919284,3943.8,3941.6,4.58174476]
[1734454705542,7.93919284,3943.8,3942.3,0.7838]
[1734454705946,2.40357284,3943.4,3942.3,0.7838]
[1734454708917,2.40357284,3943.0,3942.3,0.7838]
[1734454709120,2.40357284,3942.6,3942.3,0.7838]
[1734454709753,2.40357284,3943.0,3942.3,0.7838]
[1734454710055,0.24035728,3942.9,3942.3,0.7838]
[1734454713222,2.40357284,3943.0,3942.3,0.7838]
[1734454713425,2.52941892,3943.7,3942.3,0.7838]
[1734454713748,2.52941892,3943.7,3942.4,0.769]
[1734454714061,5.06510892,3943.7,3942.4,0.769]
[1734454714467,2.52941892,3943.7,3942.4,0.769]
[1734454714680,2.52941892,3943.7,3942.6,0.769]
[1734454715648,2.40357284,3944.1,3942.6,0.769]
[1734454715833,0.7696,3944.5,3942.6,0.769]
[1734454715834,0.53700171,3944.4,3942.6,0.769]
[1734454716263,0.53700171,3944.4,3942.7,0.79435838]
[1734454716650,2.40357284,3944.5,3942.7,0.79435838]
[1734454716850,2.40357284,3944.5,3942.8,0.55]
[1734454717084,2.40357284,3944.9,3943.0,0.55]
[1734454717258,2.40357284,3944.9,3943.1,0.769]
[1734454717586,2.40357284,3944.9,3943.3,0.769]
[1734454718537,2.40357284,3944.9,3943.3,0.79435267]
[1734454718775,2.40357284,3945.6,3943.5,0.769]
[1734454718997,2.53465,3945.4,3943.7,0.769]
[1734454719136,2.40357284,3945.2,3943.7,0.769]
[1734454719561,2.20707363,3945.2,3943.7,0.769]
[1734454719982,4.74181363,3945.2,3943.7,0.769]
[1734454720484,2.20707363,3945.2,3943.7,0.769]
[1734454721385,2.53486,3945.0,3943.7,0.769]
[1734454722280,3.47487672,3945.2,3943.9,0.769]
[1734454722486,3.47487672,3945.2,3944.1,0.769]
[1734454722487,2.20707363,3945.2,3944.1,0.769]
[1734454723648,4.74182363,3945.2,3944.1,0.769]
[1734454724023,2.20707363,3945.2,3944.1,0.769]
[1734454725950,2.40357284,3945.6,3944.1,0.769]
[1734454727351,4.93805284,3945.6,3944.1,0.769]
[1734454727903,2.53461,3945.4,3944.1,0.769]
[1734454728552,4.93804284,3945.6,3944.1,0.769]
[1734454728760,0.12459887,3945.8,3944.3,0.7526]
[1734454728956,2.40357284,3946.0,3944.1,0.7526]
[1734454729553,4.93778284,3946.0,3944.1,0.7526]
[1734454729875,2.40357284,3946.0,3944.2,0.55]
[1734454730485,4.93783284,3946.0,3944.5,0.7526]
[1734454730707,2.40357284,3945.6,3944.5,0.7526]
[1734454731257,4.93804284,3945.6,3944.5,0.7526]
[1734454731660,5.43184712,3945.6,3944.5,0.7526]
[1734454731902,2.53454,3945.5,3944.5,0.7526]
[1734454732202,2.89737712,3945.6,3944.5,0.7526]
[1734454732203,5.43185712,3945.6,3944.5,0.7526]
[1734454732411,4.93805284,3945.6,3944.5,0.7526]
[1734454732614,2.53466,3945.3,3944.5,0.7526]
[1734454733157,5.75979284,3945.6,3944.5,0.7526]
[1734454733361,2.53466,3945.3,3944.5,0.7526]
[1734454733593,2.40357284,3945.2,3944.5,0.7526]
[1734454738776,6.22527284,3946.0,3944.5,0.7526]
[1734454738979,4.93779284,3946.0,3944.5,0.7526]
[1734454739541,0.12535418,3946.1,3944.5,0.7526]
[1734454740987,0.12535418,3946.1,3944.5,0.77794615]
[1734454741163,0.12535418,3946.1,3944.5,0.7526]
[1734454742579,2.40357284,3945.6,3944.5,0.7526]
[1734454744299,2.40357284,3945.2,3944.5,0.7526]
[1734454744727,2.53511,3944.6,3943.3,0.8134]
[1734454745012,2.40357284,3944.4,3943.3,0.8134]
[1734454745364,4.93881284,3944.4,3943.3,0.8134]
[1734454745563,2.40357284,3944.4,3943.3,0.8134]
[1734454749799,2.40357284,3944.4,3943.4,0.02535205]
[1734454749994,2.40357284,3944.4,3943.5,0.8134]
[1734454752464,2.40357284,3944.8,3943.5,0.8134]
[1734454752671,1.04789472,3945.7,3943.5,0.8134]
[1734454752672,0.7895,3945.9,3943.7,0.8134]
[1734454752949,0.7895,3945.9,3943.9,0.8134]
[1734454752950,2.40357284,3945.2,3943.9,0.8134]
[1734454753611,2.40357284,3945.6,3944.0,0.55]
[1734454753901,2.40357284,3945.6,3944.1,0.8134]
[1734454754357,4.93804284,3945.6,3944.1,0.8134]
[1734454754842,2.40357284,3945.6,3944.1,0.8134]
[1734454755154,2.40357284,3945.6,3944.3,0.8134]
[1734454758870,2.40357284,3945.6,3944.5,0.8134]
[1734454761028,2.40357284,3945.6,3944.4,0.8134]
[1734454761224,5.36134208,3946.3,3944.4,0.8134]
[1734454761225,5.40357284,3946.4,3944.7,0.55]
[1734454761460,2.40357284,3946.4,3944.9,0.8134]
[1734454761631,2.40357284,3946.4,3945.1,0.8134]
[1734454762641,2.40357284,3946.4,3945.2,0.87630908]
[1734454762841,2.40357284,3946.4,3945.3,0.8134]
[1734454763758,0.12492845,3946.5,3945.3,0.8134]
[1734454765242,3.45146756,3946.8,3945.3,0.8134]
[1734454765443,1.57184208,3947.0,3945.5,0.8134]
[1734454765444,2.40357284,3946.7,3945.5,0.8134]
[1734454765658,0.24035728,3946.6,3945.5,0.8134]
[1734454766573,2.40357284,3946.7,3945.5,0.8134]
[1734454767358,2.53382,3946.6,3945.5,0.8134]
[1734454767562,2.53389,3946.5,3945.5,0.8134]
[1734454767862,4.93759284,3946.3,3945.5,0.8134]
[1734454768064,2.40357284,3946.3,3945.5,0.8134]
[1734454768591,4.93734284,3946.7,3945.5,0.8134]
[1734454768798,5.6148166,3946.7,3945.5,0.8134]
[1734454768944,2.53382,3946.6,3945.5,0.8134]
[1734454769693,3.0810466,3946.7,3945.5,0.8134]
[1734454769902,2.53329615,3947.1,3945.5,0.8134]
[1734454770199,2.53366,3946.9,3945.5,0.8134]
[1734454771389,2.53369,3946.8,3945.5,0.8134]
[1734454771681,3.52370124,3947.1,3945.5,0.8134]
[1734454772350,2.40357284,3947.1,3945.7,0.8211]
[1734454774295,4.93709284,3947.1,3945.7,0.8211]
[1734454776523,2.53357,3947.0,3945.7,0.8211]
[1734454779629,2.40357284,3947.1,3945.7,0.8211]
[1734454779785,0.753,3947.9,3945.7,0.8211]
[1734454779786,4.93682284,3947.5,3945.7,0.8211]
[1734454779985,4.93682284,3947.5,3945.9,0.8211]
[1734454780296,2.5328,3948.2,3946.6,0.8211]
[1734454781196,5.68912284,3948.6,3946.9,0.7968]
[1734454781197,2.53286,3948.1,3946.9,0.7968]
[1734454782121,2.53293,3948.0,3946.9,0.7968]
[1734454783233,2.40357284,3947.7,3946.9,0.7968]
[1734454783855,2.53318,3947.6,3946.9,0.7968]
[1734454784131,2.53325,3947.5,3946.9,0.7968]
[1734454784359,2.53325,3947.5,3945.8,0.62246728]
[1734454784360,2.40357284,3947.3,3945.9,0.7968]
[1734454784654,2.53357,3947.0,3945.9,0.7968]
[1734454784831,2.53357,3947.0,3946.0,0.14192673]
[1734454785407,2.40357284,3946.7,3946.0,0.14192673]
[1734454790042,0.7784,3947.5,3946.1,0.8279]
[1734454790220,2.40357284,3948.1,3946.2,0.57533311]
[1734454790414,2.40357284,3948.1,3946.4,1.3779]
[1734454790633,2.40357284,3948.1,3946.5,0.99473404]
[1734454791232,4.93643284,3948.1,3946.5,0.99473404]
[1734454792018,2.40357284,3948.1,3946.5,0.99473404]
[1734454792275,2.40357284,3948.1,3946.7,0.8279]
[1734454792434,2.40357284,3948.1,3946.8,0.85323296]
[1734454792641,2.40357284,3948.1,3947.0,0.8279]
[1734454793132,2.40357284,3948.1,3947.1,0.8279]
[1734454795624,2.40357284,3948.1,3947.3,0.8279]
[1734454796365,1.17727055,3949.4,3947.2,0.38279]
[1734454796366,2.53197,3949.5,3947.5,0.8279]
[1734454796561,2.40357284,3949.5,3947.5,0.8279]
[1734454796765,2.40357284,3949.5,3947.7,0.8279]
[1734454796972,0.12969714,3950.3,3947.6,0.57532599]
[1734454796973,2.53138,3950.4,3948.0,0.8279]
[1734454797132,0.53234885,3950.4,3948.2,0.8279]
[1734454797329,0.53234885,3950.4,3948.4,0.8279]
[1734454797330,2.40357284,3950.1,3948.4,0.8279]
[1734454798670,4.93520284,3950.1,3948.4,0.8279]
[1734454799165,2.53166,3950.0,3948.4,0.8279]
[1734454800686,2.40357284,3950.1,3948.4,0.8279]
[1734454800974,0.28636938,3950.7,3948.4,0.8279]
[1734454800975,4.93541284,3949.7,3948.4,0.8279]
[1734454801268,2.40357284,3949.7,3948.4,0.8279]
[1734454801497,0.7969,3949.9,3948.4,0.8279]
[1734454801498,2.40357284,3949.3,3948.4,0.8279]
[1734454801833,0.7969,3949.9,3948.4,0.8279]
[1734454801834,2.40357284,3948.9,3948.4,0.8279]
[1734454802135,2.40357284,3949.3,3948.4,0.8279]
[1734454802671,2.53195,3949.6,3948.4,0.8279]
[1734454802845,0.79355228,3949.6,3948.4,0.8279]
[1734454803034,2.40357284,3949.3,3948.4,0.8279]
[1734454803232,2.53224,3949.1,3948.4,0.8279]
[1734454804035,4.93567284,3949.3,3948.4,0.8279]
[1734454804234,2.53217,3949.2,3948.4,0.8279]
[1734454804483,0.49357428,3949.2,3948.4,0.8279]
[1734454804638,4.93567284,3949.3,3948.4,0.8279]
[1734454804860,4.93592284,3948.9,3948.4,0.8279]
[1734454805241,2.40357284,3949.3,3948.4,0.8279]
[1734454805554,2.40357284,3949.7,3948.4,0.8279]
[1734454805753,4.93543284,3949.7,3948.4,0.8279]
[1734454805951,2.5319,3949.6,3948.4,0.8279]
[1734454806261,2.99703185,3949.7,3948.4,0.8279]
[1734454806799,2.53215,3949.2,3948.4,0.8279]
[1734454806960,2.53225,3949.1,3948.4,0.8279]
[1734454807156,0.49358228,3949.0,3948.4,0.8279]
[1734454807357,2.53217,3949.2,3948.4,0.8279]
[1734454808245,2.40357284,3949.3,3948.4,0.8279]
[1734454810350,4.93568284,3949.3,3948.4,0.8279]
[1734454811377,2.53218,3949.2,3948.4,0.8279]
[1734454812583,2.53228,3949.1,3948.4,0.8279]
[1734454812888,0.49358528,3949.0,3948.4,0.8279]
[1734454813248,2.40357284,3949.3,3948.4,0.8279]
[1734454813682,4.93566284,3949.3,3948.4,0.8279]
[1734454814950,2.53217,3949.2,3948.4,0.8279]
[1734454815195,2.40357284,3949.3,3948.4,0.8279]
[1734454815551,0.0235702,3949.2,3948.4,0.8279]
[1734454817310,3.0516715,3949.2,3948.4,0.8279]
[1734454817491,0.5194915,3949.2,3948.4,0.8279]
[1734454817664,0.0235702,3949.2,3948.4,0.8279]
[1734454818107,2.40357284,3948.9,3948.4,0.8279]
[1734454818268,0.0235702,3949.2,3948.4,0.8279]
[1734454824929,0.0235702,3949.2,3948.5,0.09267748]
[1734454825433,0.0235702,3949.2,3948.6,0.9148206]
[1734454825632,0.0235702,3949.2,3948.6,0.8221]
[1734454826396,0.0235702,3949.2,3948.7,0.09278429]
[1734454826729,2.40357284,3950.1,3948.8,0.91488429]
[1734454826890,0.54035728,3950.0,3948.8,0.91488429]
[1734454827090,0.56293298,3950.0,3948.8,0.91488429]
[1734454827597,3.09459298,3950.0,3948.9,0.09278429]
[1734454827831,3.09459298,3950.0,3949.0,0.09278429]
[1734454828047,2.40357284,3949.3,3949.1,0.09278429]
[1734454828194,0.7588,3949.6,3947.7,4.0533209]
[1734454828195,2.40357284,3948.9,3947.7,0.8221]
[1734454828598,0.7588,3949.6,3947.7,0.8221]
[1734454828599,2.40357284,3948.5,3947.7,0.8221]
[1734454828820,0.02269472,3948.4,3947.7,0.8221]
[1734454829665,2.55537472,3948.4,3947.7,0.8221]
[1734454830018,2.5328,3948.2,3947.7,0.8221]
[1734454830333,0.02227896,3948.1,3947.7,0.8221]
[1734454830732,2.53269,3948.4,3947.7,0.8221]
[1734454830938,0.02227875,3948.0,3947.7,0.8221]
[1734454831138,2.40357284,3948.5,3947.7,0.8221]
[1734454831332,2.53268,3948.4,3947.7,0.8221]
[1734454833127,2.89718512,3948.5,3947.7,0.8221]
[1734454833543,3.29118,3948.9,3947.7,0.8221]
[1734454833544,4.93649284,3948.1,3947.7,0.8221]
[1734454833771,2.53299,3947.9,3947.3,0.7845]
[1734454834071,2.40357284,3947.7,3947.3,0.7845]
[1734454836165,2.40357284,3947.7,3946.7,0.7884]
[1734454836374,2.40357284,3947.0,3946.7,0.7884]
[1734454836579,2.40357284,3947.0,3946.2,0.7884]
[1734454837096,2.40357284,3947.4,3946.3,0.87551402]
[1734454837250,2.40357284,3947.8,3946.5,0.7884]
[1734454837452,2.40357284,3947.8,3946.7,0.7884]
[1734454837663,2.40357284,3947.8,3946.9,0.7884]
[1734454839256,0.7595,3948.2,3946.9,0.7884]
[1734454839257,2.40357284,3947.4,3946.9,0.7884]
[1734454839892,4.57562354,3948.6,3946.9,0.7884]
[1734454839893,2.40357284,3947.8,3946.9,0.7884]
[1734454840069,2.40357284,3948.2,3946.9,0.7884]
[1734454840273,0.123411,3948.8,3947.2,0.7884]
[1734454840456,0.61097495,3948.7,3947.4,0.7884]
[1734454840861,4.93592284,3948.9,3947.4,0.7884]
[1734454840862,2.40357284,3948.9,3947.4,0.7884]
[1734454841280,3.29172,3949.1,3947.4,0.7884]
[1734454841281,4.93566284,3949.3,3947.6,0.7884]
[1734454841491,4.93566284,3949.3,3947.8,0.7884]
[1734454842367,2.40357284,3948.9,3947.8,0.7884]
[1734454842560,2.53268,3948.4,3947.8,0.7884]
[1734454842756,3.10225528,3948.4,3947.8,0.7884]
[1734454844291,2.40357284,3948.1,3947.8,0.7884]
[1734454844493,4.93644284,3948.1,3946.8,0.7884]
[1734454844695,4.93644284,3948.1,3946.7,0.7884]
[1734454844896,2.5327,3948.4,3946.9,0.7884]
[1734454845097,2.5327,3948.4,3947.1,0.7884]
[1734454845995,2.53278,3948.3,3947.1,0.7884]
[1734454847675,2.40357284,3948.5,3947.1,0.7884]
[1734454847889,1.05041569,3948.8,3947.1,0.7884]
[1734454848088,1.81041569,3949.1,3947.3,3.0]
[1734454848274,3.58258569,3949.2,3947.5,0.7749]
[1734454848589,2.53245134,3949.3,3947.7,0.7749]
[1734454849167,2.53224,3949.1,3947.7,0.7749]
[1734454849388,2.53229,3949.0,3947.7,0.7749]
[1734454850065,2.53235,3948.9,3947.7,0.7749]
[1734454850265,2.53245134,3949.3,3947.7,0.7749]
[1734454850465,2.53223,3949.1,3947.7,0.7749]
[1734454852615,0.6874937,3949.2,3947.7,0.7749]
[1734454852791,2.40357284,3949.3,3947.7,0.7749]
[1734454853101,2.40357284,3949.3,3947.9,0.7749]
[1734454853603,1.05041569,3949.6,3948.0,0.7749]
[1734454853851,3.45398853,3950.1,3948.2,0.7749]
[1734454854013,2.40357284,3949.7,3948.4,0.7749]
[1734454854171,2.40357284,3949.7,3948.6,0.7749]
[1734454854372,2.53191,3949.6,3948.6,0.7749]
[1734454854799,2.40357284,3949.7,3948.6,0.7749]
[1734454855370,2.40357284,3950.1,3948.6,0.7749]
[1734454856467,0.0225011,3950.0,3948.6,0.7749]
[1734454858916,0.0225011,3950.0,3948.8,0.7749]
[1734454859124,2.40357284,3950.5,3949.0,0.7749]
[1734454859283,0.02301182,3949.9,3949.2,0.7749]
[1734454859484,2.40357284,3950.5,3949.2,0.7749]
[1734454859680,0.02301287,3950.4,3949.2,0.7749]
[1734454859905,0.02301287,3950.4,3949.3,0.8002184]
[1734454860308,0.02301287,3950.4,3949.3,0.7749]
[1734454861937,2.40357284,3950.1,3949.3,0.7749]
[1734454862314,0.02332591,3950.0,3949.3,0.7749]
[1734454865442,0.02332591,3950.0,3949.3,1.7749]
[1734454866044,2.53177,3949.8,3949.3,1.7749]
[1734454866388,2.53196,3949.5,3949.3,1.0]
[1734454866505,0.49355328,3949.4,3949.3,1.0]
[1734454866816,2.40357284,3949.7,3949.3,1.0]
[1734454867263,2.53203,3949.4,3949.3,1.0]
[1734454867845,5.53203,3949.4,3949.3,1.0]
[1734454868953,7.93560284,3949.4,3949.3,1.0]
[1734454870113,8.48560284,3949.4,3949.3,1.0]
[1734454870303,9.66658012,3949.4,3949.3,1.0]
[1734454870722,10.45888012,3949.4,3949.3,1.0]
[1734454870956,6.66658012,3949.4,3949.3,1.0]
[1734454872061,4.13455012,3949.4,3949.3,1.0]
[1734454872274,2.53189,3949.7,3949.3,1.0]
[1734454872846,2.53191,3949.6,3949.3,1.0]
[1734454873365,2.53199,3949.5,3949.3,1.0]
[1734454873688,2.53199,3949.5,3947.5,3.98800871]
[1734454873689,2.53269,3948.4,3947.9,0.8126]
[1734454873958,4.93643284,3948.1,3947.9,0.8126]
[1734454874161,4.93643284,3948.1,3946.7,0.8126]
[1734454874578,2.53293,3948.0,3946.7,0.8126]
[1734454875041,2.40357284,3948.1,3946.7,0.8126]
[1734454875556,2.53281,3948.2,3946.7,0.8126]
[1734454875739,2.53281,3948.2,3946.9,0.8126]
[1734454875912,2.53299,3947.9,3946.9,0.8126]
[1734454876539,4.93643284,3948.1,3946.9,0.8126]
[1734454877162,2.53299,3947.9,3946.9,0.8126]
[1734454877767,2.40357284,3948.1,3946.9,0.8126]
[1734454877919,4.93644284,3948.1,3946.9,0.8126]
[1734454878251,2.40357284,3948.1,3946.9,0.8126]
[1734454878549,2.53293,3948.0,3946.9,0.8126]
[1734454878725,2.40357284,3947.7,3946.9,0.8126]
[1734454879049,2.40357284,3947.3,3946.9,0.8126]
[1734454879234,4.93700284,3947.3,3946.9,0.8126]
[1734454880016,2.5335,3947.1,3946.9,0.8126]
[1734454880254,2.40357284,3947.3,3946.9,0.8126]
[1734454880425,2.53356,3947.0,3946.5,0.8126]
[1734454880825,0.24035728,3947.2,3946.5,0.8126]
[1734454881052,4.93699284,3947.3,3946.5,0.8126]
[1734454881225,2.40357284,3947.3,3946.5,0.8126]
[1734454881830,2.40357284,3946.9,3946.5,0.8126]
[1734454882350,2.53373,3946.8,3945.1,0.7861]
[1734454882515,2.53373,3946.8,3945.3,0.7861]
[1734454882914,2.40357284,3946.9,3945.3,0.7861]
[1734454883832,2.53371,3946.8,3945.3,0.7861]
[1734454884446,2.53371,3946.8,3946.4,0.50399704]
[1734454884645,2.40357284,3946.9,3946.4,0.50399704]
[1734454884936,2.53377,3946.7,3946.4,0.50399704]
[1734454886527,2.53377,3946.7,3945.3,0.7861]
[1734454886528,2.40357284,3946.5,3945.3,0.7861]
[1734454886733,2.40357284,3945.7,3945.3,0.7861]
[1734454886930,2.53448,3945.6,3945.3,0.7861]
[1734454887173,2.53448,3945.6,3945.0,0.7861]
[1734454887360,2.40357284,3945.1,3945.0,0.7861]
[1734454888871,2.40357284,3945.1,3945.0,1.30420452]
[1734454890634,2.40357284,3945.5,3945.0,1.30420452]
[1734454890933,2.40357284,3945.9,3945.1,0.7861]
[1734454891878,2.40357284,3945.5,3945.1,0.7861]
[1734454893248,2.53467,3945.3,3945.1,0.7861]
[1734454893431,3.20237284,3945.5,3944.7,0.8296]
[1734454893636,2.40357284,3945.1,3944.7,1.33210568]
[1734454894272,2.40357284,3945.1,3944.3,0.8296]
[1734454894470,0.56059457,3945.4,3944.3,0.8296]
[1734454894471,2.40357284,3944.4,3944.3,0.8296]
[1734454894634,2.40357284,3944.4,3942.4,0.8296]
[1734454895271,2.40357284,3944.4,3942.0,1.83443587]
[1734454895272,2.40357284,3943.7,3942.0,0.12503722]
[1734454895475,2.40357284,3943.7,3942.2,0.8296]
[1734454895678,2.40357284,3943.7,3941.6,0.8296]
[1734454896006,2.40357284,3942.7,3941.8,0.8296]
[1734454896137,5.53559,3943.9,3941.8,0.8296]
[1734454896491,2.40357284,3942.9,3941.8,0.8296]
[1734454897044,2.40357284,3942.5,3941.8,0.8296]
[1734454897346,2.40357284,3942.1,3941.8,0.8296]
[1734454898160,2.40357284,3942.1,3940.2,0.12592716]
[1734454898361,2.40357284,3941.6,3940.3,0.8296]
[1734454898771,2.40357284,3941.2,3940.3,0.8296]
[1734454899346,2.40357284,3941.6,3940.3,0.8296]
[1734454899987,2.96352048,3942.2,3940.3,0.8296]
[1734454900143,0.55,3942.0,3940.3,0.8296]
[1734454900349,3.08679,3942.0,3940.3,0.8296]
[1734454900696,2.96352048,3941.8,3940.3,0.8296]
[1734454900981,0.55,3941.7,3940.3,0.8296]
[1734454901185,2.96352048,3941.8,3940.3,0.8296]
[1734454901688,2.53635,3942.7,3939.7,0.01590478]
[1734454901689,3.0,3942.4,3940.5,0.7764]
[1734454901841,2.96352048,3942.6,3940.5,0.7764]
[1734454902249,2.96352048,3942.6,3940.6,0.02536967]
[1734454902582,0.8011,3943.0,3939.9,0.25]
[1734454902583,3.76462048,3943.0,3940.7,0.7764]
[1734454902895,0.37646205,3942.9,3940.9,0.7764]
[1734454903375,3.76462048,3943.0,3940.9,0.7764]
[1734454903579,2.96352048,3942.6,3940.9,0.7764]
[1734454904377,0.55,3942.9,3940.9,0.7764]
[1734454904872,3.76462048,3943.0,3940.9,0.7764]
[1734454905849,2.96352048,3943.0,3940.9,0.7764]
[1734454907484,0.29635205,3942.9,3940.9,0.7764]
[1734454907671,2.96352048,3943.0,3940.9,0.7764]
[1734454910862,3.76462048,3943.4,3941.1,0.7545]
[1734454911849,2.96352048,3943.4,3941.1,0.7545]
[1734454912832,2.96352048,3943.4,3941.0,0.55]
[1734454913012,2.96352048,3943.8,3941.3,3.7545]
[1734454913222,2.96352048,3943.8,3941.4,0.7545]
[1734454913359,2.96352048,3944.2,3941.8,0.7545]
[1734454913554,2.96352048,3944.2,3941.9,0.02535929]
[1734454913753,2.96352048,3944.2,3942.0,0.7545]
[1734454914519,0.55,3944.1,3942.0,0.7545]
[1734454917183,0.678922,3944.1,3942.0,0.7545]
[1734454917969,0.67529371,3944.1,3942.0,0.7545]
[1734454918284,3.0,3944.5,3942.0,0.7545]
[1734454918285,3.0,3944.5,3942.2,0.7545]
[1734454918606,3.0,3944.5,3942.1,0.02535671]
[1734454918607,0.8162,3944.9,3942.4,0.7545]
[1734454918920,0.8162,3944.9,3942.6,0.7545]
[1734454919830,0.94081488,3944.9,3942.6,0.7545]
[1734454920133,2.40475568,3944.7,3942.6,0.7545]
[1734454921440,2.40475568,3944.7,3942.8,2.40475568]
[1734454921604,2.40475568,3944.7,3943.0,0.8211]
[1734454926544,0.55,3945.2,3943.0,0.8211]
[1734454926853,2.40475568,3944.2,3943.0,0.8211]
[1734454927002,2.40475568,3943.8,3943.0,0.8211]
[1734454927337,2.40475568,3943.4,3943.0,0.8211]
[1734454927645,2.40475568,3943.4,3941.2,0.97386907]
[1734454927646,2.64523125,3943.4,3941.2,0.97386907]
[1734454927939,2.40475568,3943.4,3941.5,2.40475568]
[1734454928155,2.40475568,3943.8,3941.6,0.84646297]
[1734454928522,2.40475568,3943.8,3941.7,0.8211]
[1734454929159,2.40475568,3943.4,3941.7,0.8211]
[1734454930263,2.40475568,3943.8,3941.7,0.8211]
[1734454930410,2.89877925,3943.8,3941.9,0.8211]
[1734454930602,2.40475568,3944.2,3942.0,0.8211]
[1734454930806,2.40475568,3943.8,3942.0,0.8211]
[1734454931240,2.40475568,3943.0,3942.0,0.8211]
[1734454932256,2.95475568,3943.4,3942.0,0.8211]
[1734454932457,2.40475568,3943.4,3942.0,0.8211]
[1734454933769,2.40475568,3942.3,3942.0,0.8211]
[1734454934117,2.40475568,3942.3,3940.4,1.05629058]
[1734454934118,2.40475568,3942.3,3940.4,0.8211]
[1734454934859,2.40475568,3941.9,3940.4,0.8211]
[1734454935760,4.94159568,3941.9,3940.4,0.8211]
[1734454935942,0.55,3941.8,3940.4,0.8211]
[1734454936254,0.29547557,3941.7,3940.4,0.8211]
[1734454936573,2.40475568,3941.9,3940.4,0.8211]
[1734454937979,4.94160568,3941.9,3940.4,0.8211]
[1734454938899,2.53706,3941.6,3940.4,0.8211]
[1734454939062,3.29645,3942.3,3940.4,0.8211]